[Event "Late-Titled-Tuesday-Blitz-February-06-2024"]
[Site "Chess.com"]
[Date "2024.02.06"]
[Round "4"]
[White "NeverGiveUppp"]
[Black "UnTucopalaTimba"]
[Result "1-0"]
[WhiteElo "2456"]
[BlackElo "1957"]
[TimeControl "180+1"]
[EndTime "14:37:32 PST"]
[Termination "NeverGiveUppp won by resignation"]

1. e4 {[%clk 0:03:00.9]} 1... c6 {[%clk 0:02:59.9]} 2. Nf3 {[%clk 0:03:00.2]}
2... d5 {[%clk 0:02:59.2]} 3. exd5 {[%clk 0:03:01.1]} 3... cxd5 {[%clk
0:02:59.4]} 4. Ne5 {[%clk 0:03:01.8]} 4... Nc6 {[%clk 0:02:57]} 5. d4 {[%clk
0:03:01.3]} 5... Nf6 {[%clk 0:02:53.5]} 6. Bb5 {[%clk 0:02:59.6]} 6... Qa5+
{[%clk 0:02:49.5]} 7. Nc3 {[%clk 0:02:58.9]} 7... Qb6 {[%clk 0:02:44.7]} 8. Bg5
{[%clk 0:02:49.8]} 8... Be6 {[%clk 0:02:43.6]} 9. O-O {[%clk 0:02:48.6]} 9... a6
{[%clk 0:02:41]} 10. Ba4 {[%clk 0:02:45.1]} 10... h6 {[%clk 0:02:37.6]} 11. Bh4
{[%clk 0:02:44.8]} 11... O-O-O {[%clk 0:02:34.2]} 12. Bxc6 {[%clk 0:02:37.5]}
12... bxc6 {[%clk 0:02:33.7]} 13. Na4 {[%clk 0:02:37.8]} 13... Qb5 {[%clk
0:02:22]} 14. Nc5 {[%clk 0:02:35.9]} 14... g5 {[%clk 0:02:17.7]} 15. Bg3 {[%clk
0:02:35.5]} 15... Ne4 {[%clk 0:02:17.4]} 16. a4 {[%clk 0:02:29.3]} 16... Qb6
{[%clk 0:02:11.3]} 17. Nxe6 {[%clk 0:02:09.7]} 17... fxe6 {[%clk 0:02:06.7]} 18.
Nf7 {[%clk 0:02:04.8]} 18... Nxg3 {[%clk 0:02:01.6]} 19. hxg3 {[%clk 0:02:05.7]}
19... Bg7 {[%clk 0:02:01]} 20. Nxh8 {[%clk 0:02:04.1]} 20... Rxh8 {[%clk
0:01:58.5]} 21. Qe2 {[%clk 0:01:59.9]} 21... Kd7 {[%clk 0:01:52.7]} 22. c3
{[%clk 0:01:59.8]} 22... Rf8 {[%clk 0:01:48.5]} 23. b4 {[%clk 0:01:55.4]} 23...
a5 {[%clk 0:01:44.4]} 24. b5 {[%clk 0:01:52.9]} 24... c5 {[%clk 0:01:38.5]} 25.
c4 {[%clk 0:01:43.4]} 25... Bxd4 {[%clk 0:01:36.7]} 26. Rad1 {[%clk 0:01:41.9]}
26... dxc4 {[%clk 0:01:34.8]} 27. Qxc4 {[%clk 0:01:42.8]} 27... Qd6 {[%clk
0:01:30.3]} 28. Rd3 {[%clk 0:01:37.8]} 28... h5 {[%clk 0:01:19.3]} 29. b6 {[%clk
0:01:27.7]} 29... h4 {[%clk 0:00:47.7]} 30. Qb5+ {[%clk 0:01:24.5]} 30... Kd8
{[%clk 0:00:44.2]} 31. b7 {[%clk 0:01:21.1]} 31... Kc7 {[%clk 0:00:40.8]} 32.
Qxa5+ {[%clk 0:01:20.4]} 32... Kxb7 {[%clk 0:00:37]} 33. Rb3+ {[%clk 0:01:16.1]}
33... Kc6 {[%clk 0:00:32]} 34. Rb6+ {[%clk 0:01:15.6]} 1-0

[Event "Late-Titled-Tuesday-Blitz-February-06-2024"]
[Site "Chess.com"]
[Date "2024.02.06"]
[Round "4"]
[White "Incognito_Knight"]
[Black "tptagain"]
[Result "0-1"]
[WhiteElo "2718"]
[BlackElo "2950"]
[TimeControl "180+1"]
[EndTime "14:37:39 PST"]
[Termination "tptagain won on time"]

1. b3 {[%clk 0:03:00.9]} 1... d5 {[%clk 0:02:59.7]} 2. Bb2 {[%clk 0:03:00.7]}
2... Bf5 {[%clk 0:03:00]} 3. Nf3 {[%clk 0:03:00.6]} 3... e6 {[%clk 0:03:00.2]}
4. g3 {[%clk 0:03:01.1]} 4... h6 {[%clk 0:02:59.9]} 5. Bg2 {[%clk 0:03:01.4]}
5... Nf6 {[%clk 0:03:00.4]} 6. O-O {[%clk 0:03:01.7]} 6... Be7 {[%clk
0:03:00.7]} 7. d3 {[%clk 0:03:02.4]} 7... a5 {[%clk 0:02:59.1]} 8. a3 {[%clk
0:03:02]} 8... O-O {[%clk 0:02:58.8]} 9. Nbd2 {[%clk 0:03:02.1]} 9... c6 {[%clk
0:02:58.2]} 10. c4 {[%clk 0:03:02.2]} 10... Nbd7 {[%clk 0:02:53.9]} 11. Ra2
{[%clk 0:03:02.3]} 11... Bd6 {[%clk 0:02:46.8]} 12. e4 {[%clk 0:02:54.5]} 12...
dxe4 {[%clk 0:02:34.7]} 13. dxe4 {[%clk 0:02:55.4]} 13... Bxe4 {[%clk
0:02:05.5]} 14. Nxe4 {[%clk 0:02:38.8]} 14... Nxe4 {[%clk 0:02:06.4]} 15. Ng5
{[%clk 0:01:07.6]} 15... Qxg5 {[%clk 0:01:30]} 16. Bxe4 {[%clk 0:01:06.9]} 16...
Qe7 {[%clk 0:01:28.7]} 17. Bc3 {[%clk 0:00:20.2]} 17... Rfd8 {[%clk 0:01:16.6]}
18. Rd2 {[%clk 0:00:16.7]} 18... Bxa3 {[%clk 0:01:11.3]} 19. Qh5 {[%clk
0:00:03.4]} 19... Bb4 {[%clk 0:01:01.8]} 20. Bxb4 {[%clk 0:00:02.8]} 20... axb4
{[%clk 0:01:01.9]} 21. Rfd1 {[%clk 0:00:03.3]} 21... Nf6 {[%clk 0:01:01.8]} 0-1

[Event "Late-Titled-Tuesday-Blitz-February-06-2024"]
[Site "Chess.com"]
[Date "2024.02.06"]
[Round "4"]
[White "HandKnit"]
[Black "carloseduar100"]
[Result "0-1"]
[WhiteElo "2500"]
[BlackElo "2345"]
[TimeControl "180+1"]
[EndTime "14:37:39 PST"]
[Termination "carloseduar100 won by resignation"]

1. c4 {[%clk 0:03:00.9]} 1... Nf6 {[%clk 0:02:57.6]} 2. Nf3 {[%clk 0:02:59.7]}
2... g6 {[%clk 0:02:58.1]} 3. g3 {[%clk 0:02:59.6]} 3... Bg7 {[%clk 0:02:58.5]}
4. Bg2 {[%clk 0:03:00]} 4... O-O {[%clk 0:02:59.4]} 5. O-O {[%clk 0:03:00.4]}
5... d5 {[%clk 0:02:59.9]} 6. cxd5 {[%clk 0:02:58.3]} 6... Qxd5 {[%clk
0:02:56.8]} 7. d4 {[%clk 0:02:49.1]} 7... Nc6 {[%clk 0:02:56.6]} 8. Be3 {[%clk
0:02:47.5]} 8... Qh5 {[%clk 0:02:56.3]} 9. Nc3 {[%clk 0:02:33]} 9... Bh3 {[%clk
0:02:55.4]} 10. Bf4 {[%clk 0:02:26.7]} 10... Bxg2 {[%clk 0:02:52.4]} 11. Kxg2
{[%clk 0:02:27.6]} 11... Nd5 {[%clk 0:02:43.7]} 12. Nxd5 {[%clk 0:01:57]} 12...
Qxd5 {[%clk 0:02:44.6]} 13. e3 {[%clk 0:01:57.2]} 13... Rac8 {[%clk 0:02:34.9]}
14. Qb3 {[%clk 0:01:54.4]} 14... Qxb3 {[%clk 0:02:34.3]} 15. axb3 {[%clk
0:01:55.3]} 15... a6 {[%clk 0:02:34.4]} 16. Rfc1 {[%clk 0:01:50.3]} 16... Rfe8
{[%clk 0:02:34.4]} 17. g4 {[%clk 0:01:46.7]} 17... e5 {[%clk 0:02:32.2]} 18.
dxe5 {[%clk 0:01:44.7]} 18... Nxe5 {[%clk 0:02:32.7]} 19. Nxe5 {[%clk
0:01:43.5]} 19... Bxe5 {[%clk 0:02:33.6]} 20. Bxe5 {[%clk 0:01:43.6]} 20... Rxe5
{[%clk 0:02:34.5]} 21. Ra4 {[%clk 0:01:40.9]} 21... Rb5 {[%clk 0:02:33.4]} 22.
Rc3 {[%clk 0:01:40]} 22... c6 {[%clk 0:02:33]} 23. Rd4 {[%clk 0:01:34.5]} 23...
Re8 {[%clk 0:02:33.2]} 24. f4 {[%clk 0:01:25.9]} 24... Kg7 {[%clk 0:02:31.9]}
25. Kf3 {[%clk 0:01:25.5]} 25... h5 {[%clk 0:02:25.1]} 26. g5 {[%clk 0:01:24.2]}
26... Re7 {[%clk 0:02:21.2]} 27. b4 {[%clk 0:01:21.8]} 27... a5 {[%clk
0:02:16.6]} 28. bxa5 {[%clk 0:01:11.2]} 28... Rxb2 {[%clk 0:02:16.3]} 29. Ra4
{[%clk 0:01:10.5]} 29... Rxh2 {[%clk 0:02:15.6]} 30. a6 {[%clk 0:01:10.7]} 30...
bxa6 {[%clk 0:02:15.4]} 31. Rxa6 {[%clk 0:01:09.1]} 31... Rh3+ {[%clk
0:02:10.6]} 32. Kf2 {[%clk 0:01:08.7]} 32... Re6 {[%clk 0:02:11]} 33. Raa3
{[%clk 0:01:01.2]} 33... h4 {[%clk 0:02:01.2]} 34. Kg2 {[%clk 0:00:58.6]} 34...
Rg3+ {[%clk 0:02:01.1]} 35. Kf2 {[%clk 0:00:58.3]} 35... Rd6 {[%clk 0:01:44.7]}
36. Ra2 {[%clk 0:00:48.7]} 36... Rd1 {[%clk 0:01:37.7]} 37. Re2 {[%clk
0:00:33.3]} 37... Rdg1 {[%clk 0:01:37.4]} 38. Rxc6 {[%clk 0:00:20.4]} 38...
R3g2+ {[%clk 0:01:37.5]} 39. Kf3 {[%clk 0:00:20.1]} 39... Rxe2 {[%clk
0:01:38.4]} 40. Kxe2 {[%clk 0:00:19.8]} 40... h3 {[%clk 0:01:39.3]} 0-1

[Event "Late-Titled-Tuesday-Blitz-February-06-2024"]
[Site "Chess.com"]
[Date "2024.02.06"]
[Round "4"]
[White "Witik"]
[Black "OneTrickPony_82"]
[Result "1-0"]
[WhiteElo "2752"]
[BlackElo "2537"]
[TimeControl "180+1"]
[EndTime "14:37:40 PST"]
[Termination "Witik won by resignation"]

1. d4 {[%clk 0:02:59.6]} 1... d5 {[%clk 0:03:00]} 2. c4 {[%clk 0:02:59.6]} 2...
e6 {[%clk 0:03:00.3]} 3. Nc3 {[%clk 0:02:59.9]} 3... c5 {[%clk 0:03:00.2]} 4. e3
{[%clk 0:02:59.4]} 4... Nf6 {[%clk 0:02:59.5]} 5. a3 {[%clk 0:02:55]} 5... a6
{[%clk 0:02:50]} 6. dxc5 {[%clk 0:02:51.1]} 6... Bxc5 {[%clk 0:02:47.9]} 7. b4
{[%clk 0:02:51.5]} 7... Be7 {[%clk 0:02:44.6]} 8. Bb2 {[%clk 0:02:48]} 8... O-O
{[%clk 0:02:40.9]} 9. Nf3 {[%clk 0:02:46.4]} 9... dxc4 {[%clk 0:02:39.1]} 10.
Bxc4 {[%clk 0:02:42.7]} 10... b5 {[%clk 0:02:38.8]} 11. Bd3 {[%clk 0:02:38.9]}
11... Bb7 {[%clk 0:02:37.2]} 12. O-O {[%clk 0:02:38.9]} 12... Nbd7 {[%clk
0:02:37]} 13. Qe2 {[%clk 0:02:33.9]} 13... Rc8 {[%clk 0:02:36.1]} 14. Rfd1
{[%clk 0:02:33.3]} 14... Qb6 {[%clk 0:02:28.3]} 15. Ng5 {[%clk 0:02:26.2]} 15...
Qc6 {[%clk 0:02:20.4]} 16. Nce4 {[%clk 0:02:12.1]} 16... h6 {[%clk 0:02:10.3]}
17. Rac1 {[%clk 0:02:12]} 17... Qb6 {[%clk 0:02:05.6]} 18. Bd4 {[%clk
0:02:06.6]} 18... Qd8 {[%clk 0:02:02.8]} 19. Nxf6+ {[%clk 0:01:58.3]} 19... Nxf6
{[%clk 0:01:59.3]} 20. Bxf6 {[%clk 0:01:36.4]} 20... Bxf6 {[%clk 0:01:59.1]} 21.
Bh7+ {[%clk 0:01:29.4]} 21... Kh8 {[%clk 0:01:59.4]} 22. Rxd8 {[%clk 0:01:29.6]}
22... Rxc1+ {[%clk 0:01:55]} 23. Rd1 {[%clk 0:01:29.1]} 23... Rxd1+ {[%clk
0:01:55]} 24. Qxd1 {[%clk 0:01:29.1]} 24... Bxg5 {[%clk 0:01:47.9]} 25. Bc2
{[%clk 0:01:21.3]} 25... Rd8 {[%clk 0:01:47.5]} 26. Qe2 {[%clk 0:01:15.1]} 26...
Bf6 {[%clk 0:01:46.6]} 27. h3 {[%clk 0:01:08.7]} 27... Bc3 {[%clk 0:01:44.8]}
28. Qh5 {[%clk 0:00:47.9]} 28... Kg8 {[%clk 0:01:21.8]} 29. Qc5 {[%clk
0:00:44.1]} 29... Rc8 {[%clk 0:01:13]} 30. Qa7 {[%clk 0:00:35.4]} 30... Bd5
{[%clk 0:01:10.2]} 31. Qxa6 {[%clk 0:00:33.1]} 31... Rc6 {[%clk 0:01:03.9]} 32.
Qa8+ {[%clk 0:00:24.4]} 1-0

[Event "Late-Titled-Tuesday-Blitz-February-06-2024"]
[Site "Chess.com"]
[Date "2024.02.06"]
[Round "4"]
[White "EcosseKillie"]
[Black "IsaqueGoncalvesSanto"]
[Result "1-0"]
[WhiteElo "2250"]
[BlackElo "1929"]
[TimeControl "180+1"]
[EndTime "14:37:40 PST"]
[Termination "EcosseKillie won on time"]

1. d4 {[%clk 0:03:00.9]} 1... e6 {[%clk 0:03:00.9]} 2. e4 {[%clk 0:02:59.2]}
2... d5 {[%clk 0:02:59.7]} 3. e5 {[%clk 0:02:59.5]} 3... c5 {[%clk 0:02:58.9]}
4. Nf3 {[%clk 0:03:00.4]} 4... cxd4 {[%clk 0:02:53.4]} 5. Bd3 {[%clk 0:03:00.4]}
5... Bb4+ {[%clk 0:02:50.9]} 6. Nbd2 {[%clk 0:02:58.7]} 6... Nc6 {[%clk
0:02:49.1]} 7. O-O {[%clk 0:02:58.2]} 7... Bxd2 {[%clk 0:02:44.9]} 8. Bxd2
{[%clk 0:02:57.6]} 8... Nge7 {[%clk 0:02:44.3]} 9. Bf4 {[%clk 0:02:56.3]} 9...
Ng6 {[%clk 0:02:42.3]} 10. Bg3 {[%clk 0:02:56.3]} 10... Qb6 {[%clk 0:02:34.7]}
11. Rb1 {[%clk 0:02:55.9]} 11... Bd7 {[%clk 0:02:27]} 12. a3 {[%clk 0:02:56.1]}
12... a5 {[%clk 0:02:24.4]} 13. Re1 {[%clk 0:02:56]} 13... Nge7 {[%clk
0:02:01.7]} 14. Qd2 {[%clk 0:02:50.3]} 14... h6 {[%clk 0:02:00.1]} 15. h4 {[%clk
0:02:45.7]} 15... g6 {[%clk 0:01:45.6]} 16. Bf4 {[%clk 0:02:42.8]} 16... h5
{[%clk 0:01:40.4]} 17. Bg5 {[%clk 0:02:41.9]} 17... Nf5 {[%clk 0:01:39.6]} 18.
Bf6 {[%clk 0:02:42.3]} 18... Rg8 {[%clk 0:01:36.6]} 19. g3 {[%clk 0:02:36.4]}
19... Nce7 {[%clk 0:01:23.3]} 20. Bxf5 {[%clk 0:02:30.7]} 20... Nxf5 {[%clk
0:01:21.9]} 21. Ng5 {[%clk 0:02:29.5]} 21... Rc8 {[%clk 0:01:18.4]} 22. Nh7
{[%clk 0:02:23.7]} 22... Qc5 {[%clk 0:01:11.7]} 23. Rbc1 {[%clk 0:02:18]} 23...
Ba4 {[%clk 0:01:06.6]} 24. b3 {[%clk 0:02:13.7]} 24... Bb5 {[%clk 0:01:05.1]}
25. Bg5 {[%clk 0:02:14]} 25... Rh8 {[%clk 0:00:57.5]} 26. Nf6+ {[%clk
0:02:14.1]} 26... Kf8 {[%clk 0:00:55.3]} 27. a4 {[%clk 0:02:05.4]} 27... Ba6
{[%clk 0:00:54.2]} 28. Nd7+ {[%clk 0:02:05]} 28... Kg8 {[%clk 0:00:47.7]} 29.
Nxc5 {[%clk 0:02:04.5]} 29... Rxc5 {[%clk 0:00:44.5]} 30. c3 {[%clk 0:02:04.9]}
30... d3 {[%clk 0:00:43]} 31. c4 {[%clk 0:02:04.9]} 31... dxc4 {[%clk
0:00:40.4]} 32. bxc4 {[%clk 0:02:05.8]} 32... Bxc4 {[%clk 0:00:39.4]} 33. Rxc4
{[%clk 0:01:59.1]} 33... Rxc4 {[%clk 0:00:38.2]} 34. Qxd3 {[%clk 0:01:59.7]}
34... Rc8 {[%clk 0:00:31.4]} 35. Qb5 {[%clk 0:01:56.3]} 35... Kh7 {[%clk
0:00:14.9]} 36. Qxb7 {[%clk 0:01:55.7]} 36... Rhf8 {[%clk 0:00:11.1]} 37. Rb1
{[%clk 0:01:53.7]} 37... Kg8 {[%clk 0:00:02.7]} 38. Bf6 {[%clk 0:01:53.6]} 1-0

[Event "Late-Titled-Tuesday-Blitz-February-06-2024"]
[Site "Chess.com"]
[Date "2024.02.06"]
[Round "4"]
[White "Msb2"]
[Black "yobdc"]
[Result "1-0"]
[WhiteElo "2993"]
[BlackElo "2608"]
[TimeControl "180+1"]
[EndTime "14:37:41 PST"]
[Termination "Msb2 won by resignation"]

1. d4 {[%clk 0:03:00.9]} 1... Nf6 {[%clk 0:02:59.3]} 2. c4 {[%clk 0:02:59.8]}
2... g6 {[%clk 0:02:59.6]} 3. Nc3 {[%clk 0:03:00.1]} 3... Bg7 {[%clk 0:03:00.3]}
4. e4 {[%clk 0:03:00.7]} 4... d6 {[%clk 0:03:00.8]} 5. Nf3 {[%clk 0:03:01.5]}
5... O-O {[%clk 0:03:01.1]} 6. Be2 {[%clk 0:03:02.3]} 6... e5 {[%clk 0:02:59]}
7. Be3 {[%clk 0:03:02.7]} 7... exd4 {[%clk 0:02:51.4]} 8. Nxd4 {[%clk
0:03:03.6]} 8... Re8 {[%clk 0:02:51.8]} 9. f3 {[%clk 0:03:04.1]} 9... c6 {[%clk
0:02:52.3]} 10. Qd2 {[%clk 0:03:04.8]} 10... Na6 {[%clk 0:02:33.2]} 11. O-O
{[%clk 0:03:04.5]} 11... Nc7 {[%clk 0:02:33.1]} 12. Rad1 {[%clk 0:03:04.2]}
12... d5 {[%clk 0:02:24.9]} 13. cxd5 {[%clk 0:03:04.8]} 13... cxd5 {[%clk
0:02:24]} 14. Ndb5 {[%clk 0:03:05.3]} 14... a6 {[%clk 0:01:29.8]} 15. Nxc7
{[%clk 0:03:03.3]} 15... Qxc7 {[%clk 0:01:30.7]} 16. exd5 {[%clk 0:03:00.1]}
16... Qd6 {[%clk 0:01:05.9]} 17. a4 {[%clk 0:02:47.2]} 17... Bf5 {[%clk
0:00:52.4]} 18. Kh1 {[%clk 0:02:45.4]} 18... Rad8 {[%clk 0:00:51.6]} 19. Bc4
{[%clk 0:02:45.5]} 19... Nd7 {[%clk 0:00:45.1]} 20. Bd4 {[%clk 0:02:39.8]} 20...
Ne5 {[%clk 0:00:27.9]} 21. Bb3 {[%clk 0:02:38.7]} 21... h5 {[%clk 0:00:26]} 22.
Rfe1 {[%clk 0:02:32.1]} 22... h4 {[%clk 0:00:25.9]} 23. h3 {[%clk 0:02:21]}
23... Nd3 {[%clk 0:00:25]} 24. Rxe8+ {[%clk 0:02:14.3]} 24... Rxe8 {[%clk
0:00:25.9]} 25. Bxg7 {[%clk 0:02:14.2]} 25... Kxg7 {[%clk 0:00:26.8]} 26. Bc4
{[%clk 0:02:03.2]} 26... Qg3 {[%clk 0:00:26.8]} 27. Bxd3 {[%clk 0:01:55.5]}
27... Bxd3 {[%clk 0:00:27.7]} 28. Qxd3 {[%clk 0:01:56.4]} 28... Re1+ {[%clk
0:00:27.2]} 29. Rxe1 {[%clk 0:01:57]} 29... Qxe1+ {[%clk 0:00:27.5]} 30. Kh2
{[%clk 0:01:57.7]} 30... Qg3+ {[%clk 0:00:27.1]} 31. Kg1 {[%clk 0:01:58.2]}
31... Qe1+ {[%clk 0:00:27.5]} 32. Qf1 {[%clk 0:01:58.9]} 32... Qd2 {[%clk
0:00:25.6]} 33. Qf2 {[%clk 0:01:55.7]} 33... Qc1+ {[%clk 0:00:25.4]} 34. Qf1
{[%clk 0:01:41.1]} 34... Qxb2 {[%clk 0:00:21.8]} 35. Qd3 {[%clk 0:01:41.3]}
35... Qc1+ {[%clk 0:00:20.6]} 36. Kf2 {[%clk 0:01:41.9]} 36... Qf4 {[%clk
0:00:20.3]} 37. d6 {[%clk 0:01:36.7]} 37... Qf6 {[%clk 0:00:15]} 38. d7 {[%clk
0:01:30.2]} 38... Qd8 {[%clk 0:00:15.5]} 39. Qd4+ {[%clk 0:01:26.9]} 39... f6
{[%clk 0:00:15.6]} 40. Ne4 {[%clk 0:01:26.5]} 1-0

[Event "Late-Titled-Tuesday-Blitz-February-06-2024"]
[Site "Chess.com"]
[Date "2024.02.06"]
[Round "4"]
[White "GoValya"]
[Black "Alina_Gumerovna"]
[Result "1-0"]
[WhiteElo "2275"]
[BlackElo "2090"]
[TimeControl "180+1"]
[EndTime "14:37:43 PST"]
[Termination "GoValya won on time"]

1. d4 {[%clk 0:03:00.9]} 1... Nf6 {[%clk 0:02:58.9]} 2. g3 {[%clk 0:03:01.2]}
2... g6 {[%clk 0:02:58.1]} 3. Bg2 {[%clk 0:03:01.8]} 3... Bg7 {[%clk 0:02:58.1]}
4. c4 {[%clk 0:03:02.4]} 4... O-O {[%clk 0:02:57.9]} 5. Nc3 {[%clk 0:03:03]}
5... d6 {[%clk 0:02:58.6]} 6. Nf3 {[%clk 0:03:03.1]} 6... c6 {[%clk 0:02:59.3]}
7. O-O {[%clk 0:03:03.8]} 7... Qa5 {[%clk 0:02:58.4]} 8. e4 {[%clk 0:02:54.2]}
8... Bg4 {[%clk 0:02:57]} 9. h3 {[%clk 0:02:47.3]} 9... Bxf3 {[%clk 0:02:56.6]}
10. Bxf3 {[%clk 0:02:47.9]} 10... Nfd7 {[%clk 0:02:54]} 11. Bg2 {[%clk
0:02:41.7]} 11... Qb6 {[%clk 0:02:49.9]} 12. Ne2 {[%clk 0:02:25]} 12... e5
{[%clk 0:02:13.3]} 13. Be3 {[%clk 0:02:18.7]} 13... Qc7 {[%clk 0:01:03.2]} 14.
Rc1 {[%clk 0:02:15.9]} 14... a5 {[%clk 0:00:59.1]} 15. f4 {[%clk 0:02:11.8]}
15... f5 {[%clk 0:00:41]} 16. exf5 {[%clk 0:02:01.3]} 16... gxf5 {[%clk
0:00:37.8]} 17. c5 {[%clk 0:01:44.6]} 17... e4 {[%clk 0:00:12.4]} 18. cxd6
{[%clk 0:01:28.1]} 18... Qxd6 {[%clk 0:00:13.3]} 19. Nc3 {[%clk 0:01:28.6]}
19... Na6 {[%clk 0:00:06.6]} 20. Qb3+ {[%clk 0:01:19.9]} 20... Kh8 {[%clk
0:00:04]} 21. Rfd1 {[%clk 0:01:20]} 21... b5 {[%clk 0:00:03]} 22. d5 {[%clk
0:01:17.2]} 22... a4 {[%clk 0:00:03.4]} 23. Qc2 {[%clk 0:01:14.3]} 23... cxd5
{[%clk 0:00:01.7]} 24. Rxd5 {[%clk 0:01:13.5]} 24... Qc7 {[%clk 0:00:01.1]} 25.
Rcd1 {[%clk 0:01:13.2]} 1-0

[Event "Late-Titled-Tuesday-Blitz-February-06-2024"]
[Site "Chess.com"]
[Date "2024.02.06"]
[Round "4"]
[White "Jamal-Jamal-Jamal"]
[Black "reevecanada"]
[Result "0-1"]
[WhiteElo "2379"]
[BlackElo "2550"]
[TimeControl "180+1"]
[EndTime "14:37:44 PST"]
[Termination "reevecanada won by checkmate"]

1. e4 {[%clk 0:02:55.3]} 1... c5 {[%clk 0:02:57.6]} 2. Nf3 {[%clk 0:02:54.6]}
2... d6 {[%clk 0:02:55.8]} 3. d4 {[%clk 0:02:54.6]} 3... cxd4 {[%clk 0:02:54.9]}
4. Qxd4 {[%clk 0:02:55.5]} 4... Nc6 {[%clk 0:02:54]} 5. Qe3 {[%clk 0:02:55.5]}
5... Nf6 {[%clk 0:02:53.1]} 6. h3 {[%clk 0:02:56.1]} 6... g6 {[%clk 0:02:53.5]}
7. Be2 {[%clk 0:02:56.4]} 7... Bg7 {[%clk 0:02:54]} 8. O-O {[%clk 0:02:56.3]}
8... O-O {[%clk 0:02:54.6]} 9. Rd1 {[%clk 0:02:56.6]} 9... Qb6 {[%clk
0:02:54.9]} 10. Qf4 {[%clk 0:02:54.3]} 10... Nh5 {[%clk 0:02:53.6]} 11. Qe3
{[%clk 0:02:35.1]} 11... Qxe3 {[%clk 0:02:42.3]} 12. fxe3 {[%clk 0:02:36]} 12...
Ng3 {[%clk 0:02:41.2]} 13. Bd3 {[%clk 0:02:31.7]} 13... Ne5 {[%clk 0:02:35.5]}
14. Nc3 {[%clk 0:02:26.8]} 14... h5 {[%clk 0:02:14]} 15. Kf2 {[%clk 0:02:22.9]}
15... Nxf3 {[%clk 0:02:09.8]} 16. Kxf3 {[%clk 0:02:10.6]} 16... h4 {[%clk
0:02:02.5]} 17. Nd5 {[%clk 0:02:08]} 17... e6 {[%clk 0:01:39.9]} 18. Nf4 {[%clk
0:01:54.3]} 18... Be5 {[%clk 0:01:31.2]} 19. Rb1 {[%clk 0:01:42.2]} 19... b6
{[%clk 0:01:25.9]} 20. Ne2 {[%clk 0:01:34.1]} 20... f5 {[%clk 0:01:12.1]} 21.
Nxg3 {[%clk 0:01:30.7]} 21... fxe4+ {[%clk 0:01:08.8]} 22. Kg4 {[%clk
0:01:24.2]} 22... exd3 {[%clk 0:01:03.5]} 23. cxd3 {[%clk 0:01:18.4]} 23... Bxg3
{[%clk 0:00:59.6]} 24. e4 {[%clk 0:01:18.5]} 24... e5+ {[%clk 0:00:58.6]} 25.
Kg5 {[%clk 0:01:18.8]} 25... Kh7 {[%clk 0:00:58.2]} 26. Be3 {[%clk 0:01:15.6]}
26... Be6 {[%clk 0:00:50.7]} 27. Rbc1 {[%clk 0:01:05.8]} 27... Rf7 {[%clk
0:00:49.1]} 28. Rc6 {[%clk 0:01:04.4]} 28... Rd8 {[%clk 0:00:28.2]} 29. d4
{[%clk 0:01:02.8]} 29... exd4 {[%clk 0:00:26.4]} 30. Rxd4 {[%clk 0:01:02.6]}
30... Be5 {[%clk 0:00:26.2]} 31. Rd3 {[%clk 0:00:57.2]} 31... Bf6+ {[%clk
0:00:22.6]} 32. Kf4 {[%clk 0:00:57.2]} 32... Be7# {[%clk 0:00:23.2]} 0-1

[Event "Late-Titled-Tuesday-Blitz-February-06-2024"]
[Site "Chess.com"]
[Date "2024.02.06"]
[Round "4"]
[White "wanyaland"]
[Black "martinez_95"]
[Result "1-0"]
[WhiteElo "2487"]
[BlackElo "2224"]
[TimeControl "180+1"]
[EndTime "14:37:46 PST"]
[Termination "wanyaland won on time"]

1. d4 {[%clk 0:02:58.4]} 1... Nf6 {[%clk 0:02:19]} 2. c4 {[%clk 0:02:57.7]} 2...
e6 {[%clk 0:02:09.1]} 3. g3 {[%clk 0:02:55.6]} 3... d5 {[%clk 0:02:09.6]} 4. Bg2
{[%clk 0:02:55.7]} 4... c6 {[%clk 0:02:10.1]} 5. Nf3 {[%clk 0:02:55.6]} 5... Be7
{[%clk 0:02:10.5]} 6. O-O {[%clk 0:02:55]} 6... O-O {[%clk 0:02:11]} 7. Nbd2
{[%clk 0:02:53.6]} 7... a5 {[%clk 0:02:10.2]} 8. Qc2 {[%clk 0:02:52.7]} 8... Na6
{[%clk 0:02:10.6]} 9. a3 {[%clk 0:02:50.7]} 9... b6 {[%clk 0:02:10.9]} 10. e4
{[%clk 0:02:50.4]} 10... Bb7 {[%clk 0:02:07.8]} 11. e5 {[%clk 0:02:48.6]} 11...
Nd7 {[%clk 0:02:07.9]} 12. b3 {[%clk 0:02:47.6]} 12... Rc8 {[%clk 0:02:08.3]}
13. Rd1 {[%clk 0:02:47.6]} 13... Qc7 {[%clk 0:02:05.8]} 14. cxd5 {[%clk
0:02:41.4]} 14... cxd5 {[%clk 0:02:04.3]} 15. Qd3 {[%clk 0:02:39]} 15... Qc3
{[%clk 0:01:48.3]} 16. Qxc3 {[%clk 0:02:30.1]} 16... Rxc3 {[%clk 0:01:49.2]} 17.
Rb1 {[%clk 0:02:29.2]} 17... Rfc8 {[%clk 0:01:45.9]} 18. Bf1 {[%clk 0:02:28.5]}
18... Nab8 {[%clk 0:01:38]} 19. Bb2 {[%clk 0:02:28.1]} 19... R3c7 {[%clk
0:01:35]} 20. Bd3 {[%clk 0:02:26.6]} 20... Ba6 {[%clk 0:01:34.8]} 21. Ne1 {[%clk
0:02:20.8]} 21... Bxd3 {[%clk 0:01:29.1]} 22. Nxd3 {[%clk 0:02:21.7]} 22... Rc2
{[%clk 0:01:27.2]} 23. Nf1 {[%clk 0:02:17.8]} 23... Bg5 {[%clk 0:01:14.3]} 24.
f4 {[%clk 0:02:13.6]} 24... Be7 {[%clk 0:01:14]} 25. Ne3 {[%clk 0:02:12.9]}
25... Re2 {[%clk 0:01:13.1]} 26. Re1 {[%clk 0:02:09]} 26... Rxe1+ {[%clk
0:00:58.7]} 27. Rxe1 {[%clk 0:02:09.9]} 27... g6 {[%clk 0:00:39.1]} 28. Kf2
{[%clk 0:02:09.3]} 28... Kf8 {[%clk 0:00:39.3]} 29. Ke2 {[%clk 0:02:09]} 29...
Ke8 {[%clk 0:00:39.8]} 30. h4 {[%clk 0:02:07.4]} 30... h5 {[%clk 0:00:37.6]} 31.
Rh1 {[%clk 0:02:04.4]} 31... Kd8 {[%clk 0:00:32.3]} 32. Kd2 {[%clk 0:02:04]}
32... Nc6 {[%clk 0:00:25.8]} 33. g4 {[%clk 0:02:03.8]} 33... hxg4 {[%clk
0:00:20.3]} 34. Nxg4 {[%clk 0:02:04.7]} 34... Kc7 {[%clk 0:00:20.5]} 35. h5
{[%clk 0:02:04.2]} 35... gxh5 {[%clk 0:00:17.4]} 36. Rxh5 {[%clk 0:02:03.6]}
36... Rg8 {[%clk 0:00:17.9]} 37. Ne3 {[%clk 0:02:03.5]} 37... Nf8 {[%clk
0:00:13.3]} 38. f5 {[%clk 0:02:00.2]} 38... Rg1 {[%clk 0:00:10.7]} 39. f6 {[%clk
0:01:54]} 39... Bd8 {[%clk 0:00:10.7]} 40. Rh8 {[%clk 0:01:53.7]} 40... Ng6
{[%clk 0:00:10.1]} 41. Rh7 {[%clk 0:01:52.5]} 1-0